{"text_format":"2","workbook":"xlsx","n_sheets":1,"sheets":["BoQ"],"not_rendered":{"charts":0,"images":0,"macros":0,"external_links":0,"defined_names":0,"comments":0,"pivot_tables":0},"unopened":[],"bounds":{"document_bytes":16777216,"sheet_cells":100000,"run_cost":"one","rows_first":2000,"rows_last":500,"rows_between":2000,"halvings":0,"cell_chars":16384,"cell_head_chars":4096},"cells_cut":0,"cells_raw":0,"read":"whole","date_system":"1900"}

{"sheet":"BoQ","index":0,"n_rows":40,"n_cols":6,"rows_kept":40,"cut":false,"hidden":false,"merged":[[37,0,37,4],[38,0,38,4],[39,0,39,4],[33,0,33,4],[1,0,1,5],[17,0,19,0],[29,0,29,4],[34,0,34,4],[35,0,35,4],[32,0,32,4],[36,0,36,4],[3,0,3,5],[8,0,8,4],[9,0,9,5],[21,0,21,4],[22,0,22,5]]}
[]
["RKONSTRUKCIJA I SANACIJA POSTOJEĆE RAMPE ZA SILAZ I UZLAZ ČAMACA U RIJEKU SAVU U BIJELJINI"]
[]
["I PRIPREMNI RADOVI "]
["R.br.","Opis pozicije rada","Jedinica mjere","Količina","Jedinična cijena","Ukupno (KM)"]
[1,"Čišćenje i ravnanje terena, uklananje zemljanih naslaga sa postojeće betonske rampe, pranje betona vodom pod pritiskom. Ravnanje, nivelisanje terena na određenu kotu i nabijanje terena (valjanje). ","m²",358,null,{"$f":"D6*E6","v":0}]
[2,"Nabavka potrebnog materijala, izrada i nalijevanje AB šipova (pilota). Šipovi su okruglog poprečnog presjeka Ø 40cm, minimalne dubine 6 m. Obračun šipova je komplet sa bušenjem, ugradnjom armature i betoniranjem.","kom",3,null,{"$f":"D7*E7","v":0}]
[3,"Nabavka betona MB 30 i betoniranje naglavne grede u odgovarajućoj oplati dimenzije poprečnog presjeka 40x60 cm","m³",2.0699999999999998,null,{"$f":"D8*E8","v":0}]
["Ukupno pripremni radovi:",{"$nulls":4},{"$f":"SUM(F6:F8)","v":0}]
["II REKONSTUKCIJA I SANACIJA POSTOJEĆE RAMPE "]
[1,"Mašinski iskop zemlje za obodne grede, dimenzije iskopa 30x60 cm. Zemlja se odlaže u stranu radi kasnijeg planiranja obale nakon što se izgradi rampa.","m³",17.04,null,{"$f":"D11*E11","v":0}]
[2,"Nabavka materijala, dovlačenje razgrtanje, planiranje i nabijanje sloja priprodnog šljunka debljine 20 cm kao tampon sloj ispod AB ploče.","m³",69.8,null,0]
[3,"Nabavka materijala, lomljenog  kamena (velike krupnoće, 35-45 cm) nasipanje, slaganje i planiranje u donjem dijelu rampe uz naglavnu gredu. ","m³",41,null,0]
[4,"Nabavka betona MB 30, betoniranje obodnih greda u zemlji bez upotrebe oplate i djelimično upotreba dvostrane oplate.","m³",13.91,null,0]
[5,"Nabavka betona MB 30, betoniranje zaštitnih zidova na bočnim stranama donjeg dijela rampe u odgovarajućoj oplati. Zidovi su debljine d=30 cm kao i obodne grede.","m³",2.4,null,0]
[6,"Nabavka betona MB 30, betoniranje AB ploče d=15 cm preko nabijenog i uvaljanog sloja prirodnog šljunka.","m3",35.25,null,0]
[7,"Nabavka betona MB30, betoniranje AB parapeta na bočnim stranama silazne rampe u odgovarajućoj oplati. Parapeti su dimenzija u poprečnom presjeku 30x15cm.","m³",3.1,null,0]
[8,"Nabavka i ugradnja   klasične armature i armaturne mreže u obodne grede , naglavnu gredu, zaštitne zidove i podnu ploču."]
[null,"  -klasična armatura (RØ12, Ø6)","kg",1016.39,null,{"$f":"D19*E19","v":0}]
[null,"  -armaturna mreža (Q-335.Q-257)","kg",1633.78,null,{"$f":"D20*E20","v":0}]
[9,"Nabavka  okretnih preklapajućih metalnih alki  za vezivanje čamaca i ugrađivanje u donje AB kostruktivne elemente rampe. ","kom ",5,null,{"$f":"D21*E21","v":0}]
["Ukupno rekonstrukcija i sanacija postojeće rampe:",{"$nulls":4},{"$f":"SUM(F11:F21)","v":0}]
["III  RADOVI NA PROSTORNOM PLANIRANJU I IZRADI PRISTUPNOG PUTA"]
[1,"Nabavka materijala i bojenje gornje površine parapeta fluoroscentnim bojama radi bolje uočljivosti u slučajevima smanjene vidljivosti.","m²",15.61,null,{"$f":"D24*E24","v":0}]
[2,"Nabavka solarnih vodootpornih svetiljki i ugradnja na gornju površinu parapeta. Svetiljke imaju ulogu da noću obilježe lokalitet rampe i bolju uočljivost rampe iz plovnog objekta.","kom ",10,null,0]
[3,"Mašinsko ravnanje i planiranje terena (obale) oko novoizgrađene rampe (završno planiranje terena)               25 x 30 m.","pauš.",1,null,0]
[4,"Izrada pristupne saobraćanice, od lokacije parcele Grada Bijeljine do silazne rampe, skidanje površinskog sloja zemlje, ravnanje i planiranje posteljice puta sa poprečnim nagibom u padu prema obali. ","m2",96,null,0]
[5,"Nabavka materijala prirodnog šljunka, razgrtanje i planiranje nosivog sloja puta d=30cm sa nabijanjem i valjanjem. ","m3",28.8,null,0]
[6,"Nabavka materijala lomljenog kamena (tucanika) frakcije 0-32 mm, nasipanje planiranje i valjanje  završnog sloja puta debljine  d=10cm. ","m3",9.6,null,0]
["Ukupno radovi na prostornom planiranju i rekonstrukciji puta:",{"$nulls":4},{"$f":"SUM(F24:F29)","v":0}]
[]
[]
["                                  ZBIRNA REKAPITULACIJA"]
["OPIS RADOVA",{"$nulls":4},"Cijena (KM)"]
[{"$f":"A4","v":"I PRIPREMNI RADOVI "},{"$nulls":4},{"$f":"F9","v":0}]
[{"$f":"A10","v":"II REKONSTUKCIJA I SANACIJA POSTOJEĆE RAMPE "},{"$nulls":4},{"$f":"F22","v":0}]
[{"$f":"A23","v":"III  RADOVI NA PROSTORNOM PLANIRANJU I IZRADI PRISTUPNOG PUTA"},{"$nulls":4},{"$f":"F30","v":0}]
["UKUPNO BEZ PDV-a:",{"$nulls":4},{"$f":"SUM(F35:F37)","v":0}]
["PDV 17%:",{"$nulls":4},{"$f":"F38*0.17","v":0}]
["SVEUKUPNO SA  PDV-om:",{"$nulls":4},{"$f":"F38+F39","v":0}]